[Event "*** Titled Tuesday Blitz"]
[Site "Chess.com"]
[Date "2019.03.05"]
[Round "10"]
[White "jbj"]
[Black "Jospem"]
[Result "0-1"]
[WhiteElo "2595"]
[BlackElo "2855"]
[TimeControl "180+2"]
[EndTime "15:33:15 PST"]
[Termination "Jospem won by resignation"]

1. e4 {[%clk 0:03:01.9]} 1... a6 {[%clk 0:03:01.9]} 2. d4 {[%clk 0:03:02.8]}
2... g6 {[%clk 0:03:03.8]} 3. Bd3 {[%clk 0:03:03.7]} 3... Bg7 {[%clk 0:03:05.4]}
4. Ne2 {[%clk 0:03:05.1]} 4... d6 {[%clk 0:03:07.3]} 5. O-O {[%clk 0:03:06.4]}
5... Nd7 {[%clk 0:03:08.1]} 6. c3 {[%clk 0:03:07.3]} 6... e5 {[%clk 0:03:09.5]}
7. Be3 {[%clk 0:03:07.2]} 7... Ngf6 {[%clk 0:03:11.1]} 8. h3 {[%clk 0:03:07.8]}
8... O-O {[%clk 0:03:12.7]} 9. Qc1 {[%clk 0:03:09.1]} 9... Re8 {[%clk
0:03:14.3]} 10. Ng3 {[%clk 0:03:07.1]} 10... d5 {[%clk 0:03:15.4]} 11. exd5
{[%clk 0:03:05]} 11... Nxd5 {[%clk 0:03:15.6]} 12. Bh6 {[%clk 0:03:05.4]} 12...
exd4 {[%clk 0:03:16.3]} 13. Bxg7 {[%clk 0:03:06.2]} 13... Kxg7 {[%clk
0:03:18.2]} 14. cxd4 {[%clk 0:03:06.8]} 14... Qh4 {[%clk 0:03:19]} 15. Nc3
{[%clk 0:03:04.5]} 15... Nf4 {[%clk 0:03:17.9]} 16. Rd1 {[%clk 0:02:56.9]} 16...
Nxd3 {[%clk 0:03:09]} 17. Rxd3 {[%clk 0:02:56.9]} 17... Nf6 {[%clk 0:03:10.7]}
18. d5 {[%clk 0:02:51.6]} 18... Bd7 {[%clk 0:03:09.4]} 19. Qd2 {[%clk 0:02:48]}
19... Qh6 {[%clk 0:02:59.2]} 20. Qxh6+ {[%clk 0:02:44.9]} 20... Kxh6 {[%clk
0:03:01.1]} 21. d6 {[%clk 0:02:39.4]} 21... c5 {[%clk 0:02:58.7]} 22. Rad1
{[%clk 0:02:37.6]} 22... Bc6 {[%clk 0:02:53.9]} 23. a3 {[%clk 0:02:29]} 23...
Rad8 {[%clk 0:02:54]} 24. b4 {[%clk 0:02:28.7]} 24... cxb4 {[%clk 0:02:54.3]}
25. axb4 {[%clk 0:02:30.6]} 25... Kg7 {[%clk 0:02:54.4]} 26. Rd4 {[%clk
0:02:26.9]} 26... h5 {[%clk 0:02:53.9]} 27. Nf1 {[%clk 0:02:25]} 27... Re6
{[%clk 0:02:49]} 28. Ne3 {[%clk 0:02:25.5]} 28... Ne8 {[%clk 0:02:42.5]} 29. Nc4
{[%clk 0:02:25.5]} 29... b5 {[%clk 0:02:42.1]} 30. Na5 {[%clk 0:02:24.7]} 30...
Ba8 {[%clk 0:02:41.9]} 31. d7 {[%clk 0:02:18.4]} 31... Nf6 {[%clk 0:02:42.3]}
32. Nb3 {[%clk 0:02:19.4]} 32... Rc6 {[%clk 0:02:33.2]} 33. Nc5 {[%clk
0:02:18.7]} 33... a5 {[%clk 0:02:31.5]} 34. Nxb5 {[%clk 0:02:17.5]} 34... axb4
{[%clk 0:02:32]} 35. Nd3 {[%clk 0:02:10.9]} 35... b3 {[%clk 0:02:05.2]} 36. Nb4
{[%clk 0:01:51.7]} 36... Rc5 {[%clk 0:01:55.6]} 37. Na3 {[%clk 0:01:41.4]} 37...
b2 {[%clk 0:01:56]} 38. Nd3 {[%clk 0:01:31.8]} 38... Rc3 {[%clk 0:01:49.9]} 39.
Nb1 {[%clk 0:01:27.5]} 39... Rb3 {[%clk 0:01:36.6]} 40. Nc5 {[%clk 0:01:17.7]}
40... Rb5 {[%clk 0:01:32.3]} 41. Na4 {[%clk 0:01:04.9]} 41... Rg5 {[%clk
0:01:32.1]} 42. g3 {[%clk 0:01:00.4]} 42... Rb5 {[%clk 0:01:28.4]} 43. R1d2
{[%clk 0:00:50.9]} 43... Be4 {[%clk 0:01:26.1]} 44. Nac3 {[%clk 0:00:45]} 44...
Bxb1 {[%clk 0:01:21]} 45. Nxb5 {[%clk 0:00:43.4]} 45... Bc2 {[%clk 0:01:22.5]}
46. Na3 {[%clk 0:00:21.5]} 46... b1=Q+ {[%clk 0:01:24.4]} 47. Nxb1 {[%clk
0:00:22.4]} 47... Bxb1 {[%clk 0:01:26.3]} 48. g4 {[%clk 0:00:19.9]} 48... hxg4
{[%clk 0:01:27.3]} 49. hxg4 {[%clk 0:00:21.8]} 49... g5 {[%clk 0:01:29.2]} 50.
f4 {[%clk 0:00:21.2]} 50... gxf4 {[%clk 0:01:25.2]} 51. Rxf4 {[%clk 0:00:17.2]}
51... Rxd7 {[%clk 0:01:20.4]} 52. Rxd7 {[%clk 0:00:17.6]} 52... Nxd7 {[%clk
0:01:22.3]} 53. Kf2 {[%clk 0:00:17.8]} 53... Ne5 {[%clk 0:01:20.9]} 54. Kg3
{[%clk 0:00:18.6]} 54... Bd3 {[%clk 0:01:18.8]} 55. Rd4 {[%clk 0:00:19.3]} 55...
Bh7 {[%clk 0:01:14.9]} 56. Rd5 {[%clk 0:00:19.3]} 56... Kf6 {[%clk 0:01:09.1]}
57. Rd6+ {[%clk 0:00:18.8]} 57... Ke7 {[%clk 0:01:10.4]} 58. Rh6 {[%clk
0:00:18.7]} 58... Bg6 {[%clk 0:01:11.6]} 59. Rh1 {[%clk 0:00:19.6]} 59... Kf6
{[%clk 0:01:11]} 60. Kf4 {[%clk 0:00:18.4]} 60... Nd3+ {[%clk 0:01:12.1]} 61.
Kg3 {[%clk 0:00:19.2]} 61... Kg5 {[%clk 0:01:12.5]} 62. Rf1 {[%clk 0:00:18.6]}
62... f6 {[%clk 0:01:10.4]} 63. Rd1 {[%clk 0:00:16.7]} 63... Ne5 {[%clk
0:01:11.7]} 64. Rd4 {[%clk 0:00:17.5]} 64... Bf7 {[%clk 0:01:12.7]} 65. Rd8
{[%clk 0:00:12.5]} 65... Be6 {[%clk 0:01:12.9]} 66. Re8 {[%clk 0:00:11.8]} 66...
Bxg4 {[%clk 0:01:09.5]} 67. Rg8+ {[%clk 0:00:12.7]} 67... Kf5 {[%clk 0:01:11]}
68. Rg7 {[%clk 0:00:13.7]} 68... Bh5 {[%clk 0:01:12.1]} 69. Rg8 {[%clk
0:00:13.6]} 69... Nf7 {[%clk 0:01:11.7]} 70. Rg7 {[%clk 0:00:13.3]} 70... Ng5
{[%clk 0:01:08.1]} 71. Rg8 {[%clk 0:00:14]} 71... Ne4+ {[%clk 0:01:08.6]} 72.
Kg2 {[%clk 0:00:14.3]} 72... Kf4 {[%clk 0:01:09.2]} 73. Rh8 {[%clk 0:00:14.8]}
73... Bf3+ {[%clk 0:01:10.7]} 74. Kg1 {[%clk 0:00:16.2]} 74... f5 {[%clk
0:01:12.6]} 75. Rh4+ {[%clk 0:00:16.9]} 75... Kg3 {[%clk 0:01:13.1]} 76. Rh2
{[%clk 0:00:17.7]} 76... Bg4 {[%clk 0:01:12.3]} 77. Rg2+ {[%clk 0:00:18.6]}
77... Kf3 {[%clk 0:01:13.9]} 78. Ra2 {[%clk 0:00:18]} 78... Kf4 {[%clk 0:01:11]}
79. Ra4 {[%clk 0:00:18.1]} 79... Kg3 {[%clk 0:01:09.8]} 80. Ra3+ {[%clk
0:00:18.8]} 80... Bf3 {[%clk 0:01:10.9]} 81. Ra2 {[%clk 0:00:20]} 81... f4
{[%clk 0:01:04.1]} 82. Rg2+ {[%clk 0:00:20.8]} 82... Kh4 {[%clk 0:01:05.7]} 83.
Rh2+ {[%clk 0:00:21.3]} 83... Kg4 {[%clk 0:01:06.6]} 84. Rh8 {[%clk 0:00:21.7]}
84... Be2 {[%clk 0:01:04.2]} 85. Rg8+ {[%clk 0:00:21.9]} 85... Kf3 {[%clk
0:01:05.7]} 86. Rg2 {[%clk 0:00:22]} 86... Ke3 {[%clk 0:01:05.7]} 87. Rh2 {[%clk
0:00:21.3]} 87... f3 {[%clk 0:01:06.6]} 88. Rh3 {[%clk 0:00:22.5]} 88... Ba6
{[%clk 0:01:04.8]} 89. Kh2 {[%clk 0:00:20.9]} 89... Bc8 {[%clk 0:01:04.5]} 90.
Rh8 {[%clk 0:00:19.9]} 90... f2 {[%clk 0:00:53.4]} 91. Kg2 {[%clk 0:00:20.5]}
91... Bb7 {[%clk 0:00:46.9]} 92. Re8 {[%clk 0:00:10]} 92... Ke2 {[%clk
0:00:44.1]} 93. Rf8 {[%clk 0:00:05.9]} 93... Nf6+ {[%clk 0:00:41.2]} 0-1